[Event "Titled Tuesday Blitz May 23 Late 2023"]
[White "Davidson, Kevin"]
[Black "Maltsevskaya, Aleksandra"]
[WhiteFideId "2056810"]
[BlackFideId "24174041"]
[WhiteElo "2151"]
[BlackElo "2302"]
[Result "0-1"]
[Round "01"]
[TimeControl "180+2"]
[Date "2023.05.23"]
[WhiteClock "0:00:02"]
[BlackClock "0:00:19"]

1. e4 {[%clk 0:02:57]}  c5 {[%clk 0:02:55]} 2. Nf3 {[%clk 0:02:57]}  e6 {[%clk 0:02:55]} 3. d4 {[%clk 0:02:56]}  cxd4 {[%clk 0:02:56]} 4. Nxd4 {[%clk 0:02:57]}  Nc6 {[%clk 0:02:57]} 5. Nc3 {[%clk 0:02:56]}  Nf6 {[%clk 0:02:58]} 6. Ndb5 {[%clk 0:02:56]}  Bc5 {[%clk 0:02:58]} 7. Nd6+ {[%clk 0:02:54]}  Ke7 {[%clk 0:02:58]} 8. Bf4 {[%clk 0:02:55]}  e5 {[%clk 0:02:58]} 9. Nf5+ {[%clk 0:02:55]}  Kf8 {[%clk 0:02:59]} 10. Bg5 {[%clk 0:02:56]}  h6 {[%clk 0:02:59]} 11. Bxf6 {[%clk 0:02:54]}  Qxf6 {[%clk 0:03:00]} 12. Nd5 {[%clk 0:02:45]}  Qd8 {[%clk 0:03:00]} 13. c3 {[%clk 0:02:43]}  f6 {[%clk 0:03:00]} 14. b4 {[%clk 0:02:32]}  Bb6 {[%clk 0:02:59]} 15. Bc4 {[%clk 0:02:29]}  d6 {[%clk 0:02:56]} 16. Nxb6 {[%clk 0:02:07]}  axb6 {[%clk 0:02:56]} 17. Nxd6 {[%clk 0:01:55]}  Ke7 {[%clk 0:02:55]} 18. Qh5 {[%clk 0:01:44]}  Qxd6 {[%clk 0:02:15]} 19. Qf7+ {[%clk 0:01:35]}  Kd8 {[%clk 0:02:14]} 20. Rd1 {[%clk 0:01:35]}  Nd4 {[%clk 0:02:14]} 21. cxd4 {[%clk 0:01:30]}  Rf8 {[%clk 0:02:13]} 22. dxe5 {[%clk 0:00:53]}  Qxd1+ {[%clk 0:02:13]} 23. Kxd1 {[%clk 0:00:54]}  Rxf7 {[%clk 0:02:12]} 24. Bxf7 {[%clk 0:00:54]}  Ke7 {[%clk 0:01:52]} 25. Bd5 {[%clk 0:00:47]}  Be6 {[%clk 0:01:40]} 26. exf6+ {[%clk 0:00:46]}  gxf6 {[%clk 0:01:41]} 27. Bxe6 {[%clk 0:00:13]}  Kxe6 {[%clk 0:01:41]} 28. Ke2 {[%clk 0:00:13]}  Rxa2+ {[%clk 0:01:42]} 29. Kf3 {[%clk 0:00:13]}  Rb2 {[%clk 0:01:41]} 30. Rc1 {[%clk 0:00:11]}  Rb3+ {[%clk 0:01:32]} 31. Kf4 {[%clk 0:00:10]}  Rxb4 {[%clk 0:01:33]} 32. g4 {[%clk 0:00:10]}  Rb2 {[%clk 0:01:32]} 33. Kg3 {[%clk 0:00:08]}  b5 {[%clk 0:01:30]} 34. Rc7 {[%clk 0:00:08]}  b4 {[%clk 0:01:28]} 35. Rxb7 {[%clk 0:00:08]}  b3 {[%clk 0:01:29]} 36. Rb5 {[%clk 0:00:08]}  Rb1 {[%clk 0:01:29]} 37. Kf4 {[%clk 0:00:07]}  Kf7 {[%clk 0:01:22]} 38. h4 {[%clk 0:00:06]}  b2 {[%clk 0:01:09]} 39. h5 {[%clk 0:00:05]}  Ke7 {[%clk 0:01:00]} 40. f3 {[%clk 0:00:06]}  Kf7 {[%clk 0:00:51]} 41. Rb7+ {[%clk 0:00:05]}  Ke6 {[%clk 0:00:51]} 42. Rb6+ {[%clk 0:00:06]}  Kf7 {[%clk 0:00:51]} 43. Rb3 {[%clk 0:00:05]}  Ke6 {[%clk 0:00:50]} 44. Rb4 {[%clk 0:00:05]}  Kf7 {[%clk 0:00:48]} 45. Kf5 {[%clk 0:00:03]}  Rf1 {[%clk 0:00:47]} 46. Rb7+ {[%clk 0:00:03]}  Kf8 {[%clk 0:00:41]} 47. Rxb2 {[%clk 0:00:04]}  Rxf3+ {[%clk 0:00:42]} 48. Kg6 {[%clk 0:00:04]}  Rf4 {[%clk 0:00:42]} 49. Rg2 {[%clk 0:00:03]}  Rxe4 {[%clk 0:00:40]} 50. Kxf6 {[%clk 0:00:03]}  Kg8 {[%clk 0:00:40]} 51. Kf5 {[%clk 0:00:02]}  Rb4 {[%clk 0:00:40]} 52. Re2 {[%clk 0:00:01]}  Rb5+ {[%clk 0:00:40]} 53. Re5 {[%clk 0:00:01]}  Rb6 {[%clk 0:00:29]} 54. Rc5 {[%clk 0:00:02]}  Kg7 {[%clk 0:00:25]} 55. Rc7+ {[%clk 0:00:02]}  Kg8 {[%clk 0:00:24]} 56. Rc5 {[%clk 0:00:03]}  Kg7 {[%clk 0:00:24]} 57. Re5 {[%clk 0:00:03]}  Rf6+ {[%clk 0:00:23]} 58. Ke4 {[%clk 0:00:03]}  Rb6 {[%clk 0:00:24]} 59. Kf4 {[%clk 0:00:03]}  Kf6 {[%clk 0:00:21]} 60. Rf5+ {[%clk 0:00:03]}  Kg7 {[%clk 0:00:20]} 61. Re5 {[%clk 0:00:03]}  Kf6 {[%clk 0:00:20]} 62. Re4 {[%clk 0:00:03]}  Ra6 {[%clk 0:00:19]} 63. Rb4 {[%clk 0:00:04]}  Rc6 {[%clk 0:00:19]} 64. Rc4 {[%clk 0:00:04]}  Rxc4+ {[%clk 0:00:19]} 65. Kg3 {[%clk 0:00:02]}  Kg5 {[%clk 0:00:19]} 0-1


[Site "https://www.chess.com"]

[Event "Titled Tuesday Blitz May 23 Late 2023"]
[White "Najer, Evgeniy"]
[Black "FromTexas54"]
[WhiteFideId "4118987"]
[WhiteElo "2545"]
[BlackElo "2374"]
[Result "1-0"]
[Round "01"]
[TimeControl "180+2"]
[Date "2023.05.23"]
[WhiteClock "0:01:21"]
[BlackClock "0:00:12"]

1. d4 {[%clk 0:02:42]}  Nf6 {[%clk 0:02:59]} 2. c4 {[%clk 0:02:39]}  g6 {[%clk 0:02:59]} 3. Nc3 {[%clk 0:02:38]}  Bg7 {[%clk 0:02:55]} 4. e4 {[%clk 0:02:37]}  d6 {[%clk 0:02:56]} 5. Be2 {[%clk 0:02:37]}  O-O {[%clk 0:02:55]} 6. Be3 {[%clk 0:02:37]}  e5 {[%clk 0:02:50]} 7. d5 {[%clk 0:02:36]}  a5 {[%clk 0:02:45]} 8. g4 {[%clk 0:02:35]}  Ne8 {[%clk 0:02:25]} 9. Qd2 {[%clk 0:02:17]}  Na6 {[%clk 0:02:15]} 10. O-O-O {[%clk 0:02:15]}  Nc5 {[%clk 0:02:07]} 11. h4 {[%clk 0:02:07]}  f5 {[%clk 0:01:55]} 12. exf5 {[%clk 0:02:06]}  gxf5 {[%clk 0:01:55]} 13. g5 {[%clk 0:02:07]}  b6 {[%clk 0:01:00]} 14. f4 {[%clk 0:01:59]}  e4 {[%clk 0:00:51]} 15. Nh3 {[%clk 0:01:57]}  Kh8 {[%clk 0:00:44]} 16. h5 {[%clk 0:01:55]}  h6 {[%clk 0:00:44]} 17. Rhg1 {[%clk 0:01:51]}  Qe7 {[%clk 0:00:41]} 18. gxh6 {[%clk 0:01:44]}  Bxh6 {[%clk 0:00:41]} 19. Rg6 {[%clk 0:01:44]}  Kh7 {[%clk 0:00:33]} 20. Rdg1 {[%clk 0:01:42]}  Nf6 {[%clk 0:00:28]} 21. Bd4 {[%clk 0:01:24]}  Rf7 {[%clk 0:00:15]} 22. Rxh6+ {[%clk 0:01:21]}  Kxh6 {[%clk 0:00:15]} 23. Rg6+ {[%clk 0:01:21]}  Kh7 {[%clk 0:00:12]} 24. Ng5+ {[%clk 0:01:21]} 1-0


[Site "https://www.chess.com"]

[Event "Titled Tuesday Blitz May 23 Late 2023"]
[White "Mickiewicz, Piotr"]
[Black "Domingo Nunez, Ruben"]
[WhiteFideId "1114891"]
[BlackFideId "22245570"]
[WhiteElo "2246"]
[BlackElo "2404"]
[Result "0-1"]
[Round "01"]
[TimeControl "180+2"]
[Date "2023.05.23"]
[WhiteClock "0:00:06"]
[BlackClock "0:01:15"]

1. Nf3 {[%clk 0:02:57]}  g6 {[%clk 0:03:00]} 2. g3 {[%clk 0:02:57]}  Bg7 {[%clk 0:03:01]} 3. Bg2 {[%clk 0:02:57]}  Nf6 {[%clk 0:03:02]} 4. O-O {[%clk 0:02:56]}  d6 {[%clk 0:03:03]} 5. c4 {[%clk 0:02:55]}  O-O {[%clk 0:03:04]} 6. Nc3 {[%clk 0:02:55]}  Nbd7 {[%clk 0:03:04]} 7. d3 {[%clk 0:02:49]}  c5 {[%clk 0:03:05]} 8. Rb1 {[%clk 0:02:47]}  Rb8 {[%clk 0:03:06]} 9. a3 {[%clk 0:02:45]}  Ne8 {[%clk 0:03:07]} 10. Qc2 {[%clk 0:02:38]}  Nc7 {[%clk 0:03:07]} 11. b4 {[%clk 0:02:38]}  b6 {[%clk 0:03:08]} 12. Bb2 {[%clk 0:02:33]}  Bb7 {[%clk 0:03:08]} 13. Rfd1 {[%clk 0:02:29]}  Ne6 {[%clk 0:03:08]} 14. e3 {[%clk 0:02:29]}  Re8 {[%clk 0:03:07]} 15. Nd5 {[%clk 0:02:28]}  f6 {[%clk 0:03:07]} 16. d4 {[%clk 0:02:20]}  Rc8 {[%clk 0:03:07]} 17. Qe2 {[%clk 0:02:06]}  Bc6 {[%clk 0:03:06]} 18. Rbc1 {[%clk 0:02:03]}  Ba4 {[%clk 0:03:07]} 19. Rd2 {[%clk 0:01:58]}  Nc7 {[%clk 0:03:06]} 20. Nc3 {[%clk 0:01:56]}  Bc6 {[%clk 0:03:05]} 21. d5 {[%clk 0:01:56]}  Bb7 {[%clk 0:03:05]} 22. Bh3 {[%clk 0:01:52]}  Rb8 {[%clk 0:03:06]} 23. e4 {[%clk 0:01:51]}  Bc8 {[%clk 0:03:06]} 24. Rcd1 {[%clk 0:01:41]}  Rf8 {[%clk 0:03:06]} 25. Rd3 {[%clk 0:01:38]}  Ba6 {[%clk 0:02:55]} 26. b5 {[%clk 0:01:31]}  Bc8 {[%clk 0:02:55]} 27. Kg2 {[%clk 0:01:23]}  a6 {[%clk 0:02:56]} 28. a4 {[%clk 0:01:22]}  axb5 {[%clk 0:02:48]} 29. cxb5 {[%clk 0:01:21]}  Ne5 {[%clk 0:02:34]} 30. Nxe5 {[%clk 0:01:11]}  Bxh3+ {[%clk 0:02:35]} 31. Kxh3 {[%clk 0:01:10]}  fxe5 {[%clk 0:02:35]} 32. Kg2 {[%clk 0:01:08]}  Qd7 {[%clk 0:02:34]} 33. Rf3 {[%clk 0:01:07]}  Rf6 {[%clk 0:02:31]} 34. Rdd3 {[%clk 0:01:03]}  Bh6 {[%clk 0:02:31]} 35. Rxf6 {[%clk 0:01:02]}  exf6 {[%clk 0:02:32]} 36. Rf3 {[%clk 0:01:01]}  Bg7 {[%clk 0:02:30]} 37. Bc1 {[%clk 0:00:59]}  Rf8 {[%clk 0:02:31]} 38. h3 {[%clk 0:00:57]}  f5 {[%clk 0:02:31]} 39. Rd3 {[%clk 0:00:54]}  f4 {[%clk 0:02:30]} 40. Qg4 {[%clk 0:00:54]}  Qf7 {[%clk 0:02:25]} 41. Rf3 {[%clk 0:00:48]}  h5 {[%clk 0:02:12]} 42. Qg5 {[%clk 0:00:47]}  Bf6 {[%clk 0:02:12]} 43. Qh6 {[%clk 0:00:47]}  Qg7 {[%clk 0:01:59]} 44. Qxg7+ {[%clk 0:00:47]}  Kxg7 {[%clk 0:02:00]} 45. g4 {[%clk 0:00:43]}  hxg4 {[%clk 0:01:54]} 46. hxg4 {[%clk 0:00:43]}  Ra8 {[%clk 0:01:55]} 47. Rh3 {[%clk 0:00:42]}  Ne8 {[%clk 0:01:55]} 48. Kf3 {[%clk 0:00:41]}  Be7 {[%clk 0:01:53]} 49. Rh1 {[%clk 0:00:36]}  Nf6 {[%clk 0:01:54]} 50. Bd2 {[%clk 0:00:32]}  Nh7 {[%clk 0:01:54]} 51. Ra1 {[%clk 0:00:31]}  Ng5+ {[%clk 0:01:54]} 52. Kg2 {[%clk 0:00:28]}  Bd8 {[%clk 0:01:54]} 53. f3 {[%clk 0:00:26]}  Bc7 {[%clk 0:01:54]} 54. a5 {[%clk 0:00:25]}  bxa5 {[%clk 0:01:54]} 55. Na4 {[%clk 0:00:25]}  Rb8 {[%clk 0:01:53]} 56. Rb1 {[%clk 0:00:24]}  Nh7 {[%clk 0:01:48]} 57. b6 {[%clk 0:00:24]}  Bd8 {[%clk 0:01:48]} 58. Bxa5 {[%clk 0:00:22]}  Nf6 {[%clk 0:01:49]} 59. Bd2 {[%clk 0:00:19]}  Nd7 {[%clk 0:01:47]} 60. Ba5 {[%clk 0:00:16]}  Kf7 {[%clk 0:01:46]} 61. Rb5 {[%clk 0:00:17]}  Ke8 {[%clk 0:01:46]} 62. Kf2 {[%clk 0:00:17]}  Rb7 {[%clk 0:01:46]} 63. Ke2 {[%clk 0:00:18]}  Nb8 {[%clk 0:01:46]} 64. Kd3 {[%clk 0:00:18]}  Kd7 {[%clk 0:01:47]} 65. Kc4 {[%clk 0:00:19]}  Kc8 {[%clk 0:01:47]} 66. Rb2 {[%clk 0:00:12]}  Nd7 {[%clk 0:01:39]} 67. Rh2 {[%clk 0:00:12]}  Nxb6+ {[%clk 0:01:39]} 68. Bxb6 {[%clk 0:00:11]}  Bxb6 {[%clk 0:01:38]} 69. Kb5 {[%clk 0:00:10]}  Bd8+ {[%clk 0:01:21]} 70. Kc6 {[%clk 0:00:11]}  Rb4 {[%clk 0:01:18]} 71. Ra2 {[%clk 0:00:06]}  Bc7 {[%clk 0:01:18]} 72. Nxc5 {[%clk 0:00:06]}  Rb6# {[%clk 0:01:15]} 0-1


[Site "https://www.chess.com"]

[Event "Titled Tuesday Blitz May 23 Late 2023"]
[White "Sarkar, Justin"]
[Black "Godzwon, Iwo"]
[WhiteFideId "2010011"]
[BlackFideId "21802483"]
[WhiteElo "2168"]
[BlackElo "2284"]
[Result "0-1"]
[Round "01"]
[TimeControl "180+2"]
[Date "2023.05.23"]
[WhiteClock "0:00:00"]
[BlackClock "0:01:25"]

1. e4 {[%clk 0:02:50]}  c5 {[%clk 0:02:58]} 2. Nf3 {[%clk 0:02:49]}  e6 {[%clk 0:02:58]} 3. d4 {[%clk 0:02:48]}  cxd4 {[%clk 0:02:58]} 4. Nxd4 {[%clk 0:02:48]}  Nf6 {[%clk 0:02:59]} 5. Nc3 {[%clk 0:02:47]}  d6 {[%clk 0:02:58]} 6. Bd3 {[%clk 0:02:40]}  a6 {[%clk 0:02:58]} 7. O-O {[%clk 0:02:38]}  b5 {[%clk 0:02:57]} 8. a4 {[%clk 0:02:30]}  b4 {[%clk 0:02:57]} 9. Na2 {[%clk 0:02:28]}  Bb7 {[%clk 0:02:52]} 10. Nxb4 {[%clk 0:02:20]}  d5 {[%clk 0:02:51]} 11. exd5 {[%clk 0:02:12]}  Bxb4 {[%clk 0:02:49]} 12. dxe6 {[%clk 0:02:10]}  O-O {[%clk 0:02:32]} 13. exf7+ {[%clk 0:02:04]}  Rxf7 {[%clk 0:02:31]} 14. Bc4 {[%clk 0:01:58]}  Bd5 {[%clk 0:02:32]} 15. Ne6 {[%clk 0:01:52]}  Qd7 {[%clk 0:02:29]} 16. Bxd5 {[%clk 0:01:39]}  Qxd5 {[%clk 0:02:10]} 17. Qxd5 {[%clk 0:01:35]}  Nxd5 {[%clk 0:02:11]} 18. Rd1 {[%clk 0:01:28]}  Rd7 {[%clk 0:02:11]} 19. c3 {[%clk 0:01:20]}  Be7 {[%clk 0:02:08]} 20. Bg5 {[%clk 0:00:52]}  Bxg5 {[%clk 0:02:02]} 21. Nxg5 {[%clk 0:00:52]}  Nf6 {[%clk 0:01:56]} 22. a5 {[%clk 0:00:44]}  Nc6 {[%clk 0:01:52]} 23. Rxd7 {[%clk 0:00:38]}  Nxd7 {[%clk 0:01:53]} 24. b4 {[%clk 0:00:38]}  Nde5 {[%clk 0:01:52]} 25. Rd1 {[%clk 0:00:31]}  Na7 {[%clk 0:01:46]} 26. Kf1 {[%clk 0:00:22]}  Nb5 {[%clk 0:01:46]} 27. Ne4 {[%clk 0:00:21]}  Rc8 {[%clk 0:01:36]} 28. Rd5 {[%clk 0:00:18]}  Ng4 {[%clk 0:01:27]} 29. h3 {[%clk 0:00:13]}  Nf6 {[%clk 0:01:27]} 30. Nxf6+ {[%clk 0:00:05]}  gxf6 {[%clk 0:01:28]} 31. Rd7 {[%clk 0:00:02]}  Rxc3 {[%clk 0:01:26]} 32. Rb7 {[%clk 0:00:00]}  Rc6 {[%clk 0:01:25]} 0-1


[Site "https://www.chess.com"]

[Event "Titled Tuesday Blitz May 23 Late 2023"]
[White "Chabris, Christopher"]
[Black "Djokic, Mihailo"]
[WhiteFideId "2005263"]
[BlackFideId "976440"]
[WhiteElo "2363"]
[BlackElo "2294"]
[Result "0-1"]
[Round "01"]
[TimeControl "180+2"]
[Date "2023.05.23"]
[WhiteClock "0:00:00"]
[BlackClock "0:00:07"]

1. e4 {[%clk 0:02:58]}  c5 {[%clk 0:02:59]} 2. Nf3 {[%clk 0:02:56]}  d6 {[%clk 0:03:00]} 3. Bb5+ {[%clk 0:02:49]}  Bd7 {[%clk 0:03:00]} 4. Bxd7+ {[%clk 0:02:48]}  Qxd7 {[%clk 0:03:01]} 5. O-O {[%clk 0:02:48]}  Nc6 {[%clk 0:03:00]} 6. Qe2 {[%clk 0:02:48]}  Nf6 {[%clk 0:03:00]} 7. c3 {[%clk 0:02:48]}  e6 {[%clk 0:03:01]} 8. d4 {[%clk 0:02:47]}  cxd4 {[%clk 0:03:02]} 9. cxd4 {[%clk 0:02:47]}  d5 {[%clk 0:03:02]} 10. e5 {[%clk 0:02:47]}  Ne4 {[%clk 0:03:03]} 11. Be3 {[%clk 0:02:47]}  f6 {[%clk 0:03:02]} 12. exf6 {[%clk 0:02:38]}  gxf6 {[%clk 0:03:01]} 13. Nc3 {[%clk 0:02:38]}  Nxc3 {[%clk 0:03:01]} 14. bxc3 {[%clk 0:02:38]}  Bd6 {[%clk 0:03:02]} 15. c4 {[%clk 0:02:38]}  Ne7 {[%clk 0:02:38]} 16. Nh4 {[%clk 0:02:31]}  dxc4 {[%clk 0:02:36]} 17. Qh5+ {[%clk 0:02:24]}  Kd8 {[%clk 0:02:36]} 18. Rfc1 {[%clk 0:02:13]}  Rc8 {[%clk 0:02:36]} 19. Qa5+ {[%clk 0:02:09]}  b6 {[%clk 0:02:35]} 20. Qa6 {[%clk 0:02:03]}  c3 {[%clk 0:02:35]} 21. a4 {[%clk 0:01:54]}  Nd5 {[%clk 0:02:32]} 22. Qd3 {[%clk 0:01:36]}  Rg8 {[%clk 0:02:20]} 23. Kh1 {[%clk 0:01:02]}  f5 {[%clk 0:02:09]} 24. g3 {[%clk 0:00:37]}  Qc6 {[%clk 0:01:56]} 25. Kg1 {[%clk 0:00:33]}  Qc4 {[%clk 0:01:56]} 26. Qd1 {[%clk 0:00:26]}  Rg4 {[%clk 0:01:47]} 27. h3 {[%clk 0:00:24]}  Nxe3 {[%clk 0:01:46]} 28. fxe3 {[%clk 0:00:21]}  Rxg3+ {[%clk 0:01:45]} 29. Kf2 {[%clk 0:00:19]}  Rg4 {[%clk 0:01:42]} 30. hxg4 {[%clk 0:00:16]}  f4 {[%clk 0:01:41]} 31. Qe2 {[%clk 0:00:13]}  fxe3+ {[%clk 0:01:37]} 32. Qxe3 {[%clk 0:00:13]}  e5 {[%clk 0:01:36]} 33. Nf5 {[%clk 0:00:12]}  exd4 {[%clk 0:01:19]} 34. Qxd4 {[%clk 0:00:12]}  Qxd4+ {[%clk 0:01:14]} 35. Nxd4 {[%clk 0:00:12]}  Be5 {[%clk 0:01:05]} 36. Ke3 {[%clk 0:00:12]}  Rc4 {[%clk 0:01:04]} 37. Rd1 {[%clk 0:00:12]}  Kc8 {[%clk 0:01:00]} 38. Nb5 {[%clk 0:00:10]}  a6 {[%clk 0:00:58]} 39. Na3 {[%clk 0:00:10]}  Rxg4 {[%clk 0:00:55]} 40. Nc2 {[%clk 0:00:09]}  h5 {[%clk 0:00:53]} 41. Rg1 {[%clk 0:00:09]}  Rc4 {[%clk 0:00:37]} 42. Rg5 {[%clk 0:00:09]}  Bf4+ {[%clk 0:00:37]} 43. Kd3 {[%clk 0:00:10]}  Rc6 {[%clk 0:00:24]} 44. Rxh5 {[%clk 0:00:08]}  a5 {[%clk 0:00:22]} 45. Rf1 {[%clk 0:00:08]}  Rd6+ {[%clk 0:00:19]} 46. Kxc3 {[%clk 0:00:07]}  Bd2+ {[%clk 0:00:19]} 47. Kb2 {[%clk 0:00:07]}  Kb7 {[%clk 0:00:20]} 48. Rf7+ {[%clk 0:00:06]}  Ka6 {[%clk 0:00:20]} 49. Rh8 {[%clk 0:00:05]}  b5 {[%clk 0:00:14]} 50. Ra8+ {[%clk 0:00:04]}  Kb6 {[%clk 0:00:15]} 51. Rb8+ {[%clk 0:00:04]}  Kc6 {[%clk 0:00:15]} 52. axb5+ {[%clk 0:00:04]}  Kc5 {[%clk 0:00:15]} 53. Rf5+ {[%clk 0:00:04]}  Kc4 {[%clk 0:00:15]} 54. b6 {[%clk 0:00:03]}  Bc3+ {[%clk 0:00:13]} 55. Ka2 {[%clk 0:00:04]}  Rd2 {[%clk 0:00:13]} 56. Rc8+ {[%clk 0:00:03]}  Kd3 {[%clk 0:00:13]} 57. Rd8+ {[%clk 0:00:03]}  Bd4 {[%clk 0:00:08]} 58. Rxd4+ {[%clk 0:00:02]}  Kxc2 {[%clk 0:00:07]} 59. Rxd2+ {[%clk 0:00:01]}  Kc1 {[%clk 0:00:06]} 60. b7 {[%clk 0:00:00]}  a4 {[%clk 0:00:07]} 0-1


[Site "https://www.chess.com"]

[Event "Titled Tuesday Blitz May 23 Late 2023"]
[White "Carrasco Miranda, Andres"]
[Black "Ilkhomi, Jaloliddin"]
[WhiteFideId "3405990"]
[BlackFideId "14700948"]
[WhiteElo "2183"]
[BlackElo "2045"]
[Result "0-1"]
[Round "01"]
[TimeControl "180+2"]
[Date "2023.05.23"]
[WhiteClock "0:00:00"]
[BlackClock "0:01:32"]

1. d4 {[%clk 0:02:56]}  Nf6 {[%clk 0:02:59]} 2. c4 {[%clk 0:02:55]}  e6 {[%clk 0:02:59]} 3. g3 {[%clk 0:02:55]}  Bb4+ {[%clk 0:02:57]} 4. Nd2 {[%clk 0:02:55]}  Ne4 {[%clk 0:02:56]} 5. Bg2 {[%clk 0:02:52]}  f5 {[%clk 0:02:56]} 6. Nf3 {[%clk 0:02:50]}  O-O {[%clk 0:02:56]} 7. O-O {[%clk 0:02:50]}  Nxd2 {[%clk 0:02:57]} 8. Bxd2 {[%clk 0:02:50]}  Bxd2 {[%clk 0:02:57]} 9. Qxd2 {[%clk 0:02:51]}  d6 {[%clk 0:02:57]} 10. Rfe1 {[%clk 0:02:50]}  Nd7 {[%clk 0:02:54]} 11. e4 {[%clk 0:02:50]}  Qf6 {[%clk 0:02:53]} 12. e5 {[%clk 0:02:46]}  dxe5 {[%clk 0:02:50]} 13. Nxe5 {[%clk 0:02:47]}  Nxe5 {[%clk 0:02:50]} 14. dxe5 {[%clk 0:02:48]}  Qe7 {[%clk 0:02:48]} 15. f4 {[%clk 0:02:45]}  Rd8 {[%clk 0:02:47]} 16. Qe3 {[%clk 0:02:43]}  Rb8 {[%clk 0:02:45]} 17. Qxa7 {[%clk 0:02:40]}  Bd7 {[%clk 0:02:41]} 18. Red1 {[%clk 0:02:37]}  Bc6 {[%clk 0:02:30]} 19. Bxc6 {[%clk 0:02:19]}  bxc6 {[%clk 0:02:31]} 20. b3 {[%clk 0:02:20]}  Rb6 {[%clk 0:02:18]} 21. Qa5 {[%clk 0:02:04]}  h5 {[%clk 0:02:18]} 22. h4 {[%clk 0:02:01]}  Rbb8 {[%clk 0:02:15]} 23. Qe1 {[%clk 0:01:37]}  Kh7 {[%clk 0:02:15]} 24. Qf2 {[%clk 0:01:35]}  Ra8 {[%clk 0:02:14]} 25. Kg2 {[%clk 0:01:32]}  Qa3 {[%clk 0:02:12]} 26. Kh3 {[%clk 0:01:24]}  Kh6 {[%clk 0:02:09]} 27. Rac1 {[%clk 0:01:08]}  g6 {[%clk 0:01:56]} 28. Qe2 {[%clk 0:00:48]}  c5 {[%clk 0:01:49]} 29. Rxd8 {[%clk 0:00:42]}  Rxd8 {[%clk 0:01:49]} 30. Rd1 {[%clk 0:00:43]}  Rd4 {[%clk 0:01:43]} 31. Rd3 {[%clk 0:00:36]}  Qc1 {[%clk 0:01:40]} 32. Kg2 {[%clk 0:00:33]}  Qb1 {[%clk 0:01:32]} 33. Rxd4 {[%clk 0:00:28]}  cxd4 {[%clk 0:01:33]} 34. c5 {[%clk 0:00:27]}  d3 {[%clk 0:01:33]} 35. Qf2 {[%clk 0:00:24]}  Qc2 {[%clk 0:01:32]} 36. Kf3 {[%clk 0:00:00]}  d2 {[%clk 0:01:32]} 0-1


[Site "https://www.chess.com"]

[Event "Titled Tuesday Blitz May 23 Late 2023"]
[White "FuenfgegenWilly"]
[Black "Ehlvest, Jaan"]
[BlackFideId "4500016"]
[WhiteElo "2350"]
[BlackElo "2442"]
[Result "0-1"]
[Round "01"]
[TimeControl "180+2"]
[Date "2023.05.23"]
[WhiteClock "0:00:11"]
[BlackClock "0:00:43"]

1. Nf3 {[%clk 0:02:53]}  d5 {[%clk 0:02:54]} 2. e3 {[%clk 0:02:52]}  g6 {[%clk 0:02:52]} 3. c4 {[%clk 0:02:51]}  Nf6 {[%clk 0:02:51]} 4. b3 {[%clk 0:02:50]}  Bg7 {[%clk 0:02:51]} 5. Bb2 {[%clk 0:02:51]}  O-O {[%clk 0:02:51]} 6. cxd5 {[%clk 0:02:42]}  Nxd5 {[%clk 0:02:48]} 7. Bxg7 {[%clk 0:02:43]}  Kxg7 {[%clk 0:02:48]} 8. Qc2 {[%clk 0:02:39]}  b6 {[%clk 0:02:45]} 9. h4 {[%clk 0:02:38]}  h6 {[%clk 0:02:43]} 10. h5 {[%clk 0:02:37]}  g5 {[%clk 0:02:43]} 11. Qb2+ {[%clk 0:02:33]}  f6 {[%clk 0:02:36]} 12. Nc3 {[%clk 0:02:26]}  e5 {[%clk 0:02:32]} 13. Nxd5 {[%clk 0:02:17]}  Qxd5 {[%clk 0:02:32]} 14. Bc4 {[%clk 0:02:18]}  Qd6 {[%clk 0:02:31]} 15. O-O-O {[%clk 0:01:55]}  c5 {[%clk 0:02:27]} 16. d4 {[%clk 0:01:54]}  cxd4 {[%clk 0:02:26]} 17. Kb1 {[%clk 0:01:47]}  Nc6 {[%clk 0:02:15]} 18. exd4 {[%clk 0:01:47]}  e4 {[%clk 0:02:01]} 19. d5 {[%clk 0:01:47]}  Na5 {[%clk 0:01:45]} 20. Nd4 {[%clk 0:01:43]}  Nxc4 {[%clk 0:01:44]} 21. bxc4 {[%clk 0:01:44]}  Bd7 {[%clk 0:01:43]} 22. Rhe1 {[%clk 0:01:41]}  Rfe8 {[%clk 0:01:41]} 23. Qc2 {[%clk 0:01:33]}  Rac8 {[%clk 0:01:37]} 24. Rxe4 {[%clk 0:01:11]}  Qb4+ {[%clk 0:01:30]} 25. Nb3 {[%clk 0:01:07]}  Bf5 {[%clk 0:01:23]} 26. Re7+ {[%clk 0:01:05]}  Qxe7 {[%clk 0:01:18]} 27. Qxf5 {[%clk 0:01:06]}  Qe4+ {[%clk 0:01:18]} 28. Qxe4 {[%clk 0:01:06]}  Rxe4 {[%clk 0:01:18]} 29. Nd4 {[%clk 0:00:59]}  Rxc4 {[%clk 0:01:18]} 30. Ne6+ {[%clk 0:00:59]}  Kf7 {[%clk 0:01:17]} 31. f3 {[%clk 0:01:00]}  Re2 {[%clk 0:01:13]} 32. Nd8+ {[%clk 0:00:57]}  Ke7 {[%clk 0:01:11]} 33. Nc6+ {[%clk 0:00:56]}  Kd6 {[%clk 0:01:11]} 34. g4 {[%clk 0:00:53]}  Rcc2 {[%clk 0:01:09]} 35. Nd4 {[%clk 0:00:43]}  Rcd2 {[%clk 0:01:02]} 36. Nb5+ {[%clk 0:00:34]}  Kxd5 {[%clk 0:00:55]} 37. Nc3+ {[%clk 0:00:33]}  Ke5 {[%clk 0:00:50]} 38. Rf1 {[%clk 0:00:24]}  Rb2+ {[%clk 0:00:48]} 39. Ka1 {[%clk 0:00:22]}  Rf2 {[%clk 0:00:48]} 40. Re1+ {[%clk 0:00:22]}  Kd4 {[%clk 0:00:47]} 41. Rc1 {[%clk 0:00:19]}  Rbc2 {[%clk 0:00:43]} 42. Nb5+ {[%clk 0:00:11]}  Kc5 {[%clk 0:00:43]} 0-1


[Site "https://www.chess.com"]